[Event "7th Cesme Open-A 2019"]
[Site "Cesme"]
[Date "2019.06.24"]
[Round "1"]
[White "Akin, Yagiz Cinar"]
[Black "Tuncer, Tuna"]
[Result "0-1"]
[ECO "B40"]
[WhiteElo "1955"]
[BlackElo "2365"]
[Annotator "NA"]
[PlyCount "136"]
[EventDate "2019.06.24"]
[EventType "swiss"]
[EventCountry "TUR"]
[SourceTitle "playchess.com"]
[Source "ChessBase"]
[SourceQuality "1"]
[TimeControl "5400+30"]

1. e4 c5 2. Nf3 e6 3. g3 Nc6 4. Bg2 Nf6 5. Qe2 e5 6. O-O Be7 7. d3 h6 8. c3 O-O {[%emt 0:03:00]} 9. Re1 {[%emt 0:09:30]} Re8 {[%emt 0:00:30]} 10. Na3 {[%emt 0:00:30]} Bf8 {[%emt 0:01:30]} 11. Nc4 {[%emt 0:04:30]} d5 {[%emt 0:03:30]} 12. exd5 {[%emt 0:01:30]} Nxd5 {[%emt 0:00:30]} 13. h3 {[%emt 0:05:30]} Nc7 {[%emt 0:13:30]} 14. g4 {[%emt 0:03:30]} g6 {[%emt 0:05:30]} 15. Be3 {[%emt 0:06:30]} Nd5 {[%emt 0:11:30]} 16. Rad1 {[%emt 0:03:30]} b6 {[%emt 0:08:30]} 17. Nfxe5 {[%emt 0:13:30]} Nxe5 {[%emt 0:08:30]} 18. Bc1 {[%emt 0:00:30]} Bb7 {[%emt 0:10:30]} 19. Nxe5 {[%emt 0:04:30]} Bg7 {[%emt 0:00:30]} 20. d4 {[%emt 0:06:30]} cxd4 {[%emt 0:01:30]} 21. cxd4 {[%emt 0:01:30]} Rc8 {[%emt 0:03:30]} 22. Qb5 {[%emt 0:03:30]} Re7 {[%emt 0:01:30]} 23. Qb3 {[%emt 0:01:30]} Rec7 {[%emt 0:00:30]} 24. Bd2 {[%emt 0:00:30]} Qd6 {[%emt 0:02:30]} 25. Rc1 {[%emt 0:02:30]} Rxc1 {[%emt 0:01:30]} 26. Bxc1 {[%emt 0:00:30]} Rc7 {[%emt 0:02:30]} 27. Bd2 {[%emt 0:00:30]} Re7 {[%emt 0:02:30]} 28. Qg3 {[%emt 0:01:30]} Rc7 {[%emt 0:02:14]} 29. Qd3 {[%emt 0:06:30]} Kh7 {[%emt 0:07:47]} 30. a3 {[%emt 0:03:30]} Qf6 {[%emt 0:04:32]} 31. Be4 {[%emt 0:03:30]} Kg8 {[%emt 0:00:45]} 32. Rc1 {[%emt 0:00:30]} Re7 {[%emt 0:02:01]} 33. Re1 {[%emt 0:05:53]} Qd6 {[%emt 0:01:50]} 34. f4 {[%emt 0:01:08]} Rc7 {[%emt 0:00:09]} 35. Rc1 {[%emt 0:00:50]} Re7 {[%emt 0:00:33]} 36. Rd1 {[%emt 0:02:31]} Rc7 {[%emt 0:01:40]} 37. b4 {[%emt 0:01:08]} Qd8 {[%emt 0:01:38]} 38. f5 {[%emt 0:00:59]} g5 {[%emt 0:00:28]} 39. Nf3 {[%emt 0:01:33]} Re7 {[%emt 0:00:34]} 40. Re1 {[%emt 0:00:41]} Qe8 {[%emt 0:00:08]} 41. Bxd5 {[%emt 0:03:07]} Bxd5 {[%emt 0:00:35]} 42. Rxe7 {[%emt 0:00:42]} Qxe7 {[%emt 0:00:01]} 43. Bc3 {[%emt 0:00:24]} f6 {[%emt 0:01:10]} 44. Kf2 {[%emt 0:00:30]} Qd7 {[%emt 0:00:32]} 45. b5 {[%emt 0:01:20]} Qc7 {[%emt 0:00:49]} 46. Qe3 {[%emt 0:00:47]} Bf8 {[%emt 0:00:28]} 47. Bb4 {[%emt 0:01:49]} Bxb4 {[%emt 0:00:30]} 48. axb4 {[%emt 0:00:00]} Kf7 {[%emt 0:00:00]} 49. Qa3 {[%emt 0:01:02]} Ke7 {[%emt 0:00:23]} 50. Qd3 {[%emt 0:01:08]} Kd7 {[%emt 0:00:23]} 51. Qa3 {[%emt 0:00:33]} Kc8 {[%emt 0:00:37]} 52. Qe3 {[%emt 0:00:24]} Qd7 {[%emt 0:00:31]} 53. Qd3 {[%emt 0:00:58]} Qd6 {[%emt 0:00:19]} 54. Qc3+ {[%emt 0:00:45]} Kb7 {[%emt 0:00:15]} 55. Qe3 {[%emt 0:00:51]} Qxb4 {[%emt 0:01:53]} 56. Qe8 {[%emt 0:00:06]} Qd6 {[%emt 0:00:22]} 57. Qh8 {[%emt 0:01:44]} a5 {[%emt 0:00:51]} 58. Qg7+ {[%emt 0:00:48]} Ka8 {[%emt 0:00:18]} 59. Qh8+ {[%emt 0:00:44]} Ka7 {[%emt 0:00:07]} 60. Qh7+ {[%emt 0:00:15]} Bb7 {[%emt 0:00:10]} 61. Qf7 {[%emt 0:00:00]} Qf4 {[%emt 0:01:08]} 62. d5 {[%emt 0:00:30]} a4 {[%emt 0:00:03]} 63. Qe7 {[%emt 0:00:00]} Qc4 {[%emt 0:01:03]} 64. d6 {[%emt 0:01:25]} Qc5+ {[%emt 0:00:02]} 65. Kf1 {[%emt 0:00:23]} Qxb5+ {[%emt 0:00:40]} 66. Kg2 {[%emt 0:00:04]} Qb2+ {[%emt 0:00:00]} 67. Kg1 {[%emt 0:00:13]} a3 {[%emt 0:00:58]} 68. d7 {[%emt 0:01:36]} a2 {[%emt 0:00:30]} 0-1

[Event "7th Cesme Open-A 2019"]
[Site "Cesme"]
[Date "2019.06.24"]
[Round "1"]
[White "Yasin, Hur"]
[Black "Rzayev, Bahruz"]
[Result "0-1"]
[ECO "C56"]
[WhiteElo "1953"]
[BlackElo "2340"]
[Annotator "NA"]
[PlyCount "126"]
[EventDate "2019.06.24"]
[EventType "swiss"]
[EventCountry "TUR"]
[SourceTitle "playchess.com"]
[Source "ChessBase"]
[SourceQuality "1"]
[TimeControl "5400+30"]

1. e4 e5 2. Nf3 Nc6 3. d4 exd4 4. Bc4 Nf6 5. O-O Nxe4 6. Re1 d5 7. Bxd5 Qxd5 8. Nc3 Qa5 9. Nxe4 Be6 10. Bg5 h6 {[%emt 0:02:00]} 11. Bh4 {[%emt 0:10:30]} g5 {[%emt 0:01:30]} 12. Nf6+ {[%emt 0:03:30]} Ke7 {[%emt 0:00:30]} 13. Nxd4 {[%emt 0:00:30]} Rd8 {[%emt 0:02:30]} 14. Nxc6+ {[%emt 0:04:30]} bxc6 {[%emt 0:00:30]} 15. Qf3 {[%emt 0:00:30]} gxh4 {[%emt 0:00:30]} 16. Nh5 {[%emt 0:09:30]} Qg5 {[%emt 0:03:30]} 17. Re4 {[%emt 0:11:30]} Bg7 {[%emt 0:03:30]} 18. Rae1 {[%emt 0:02:30]} Rd4 {[%emt 0:03:30]} 19. Nf4 {[%emt 0:21:30]} Qf5 {[%emt 0:03:30]} 20. Rxd4 {[%emt 0:03:30]} Bxd4 {[%emt 0:01:30]} 21. Nxe6 {[%emt 0:00:00]} Bxf2+ {[%emt 0:01:30]} 22. Kxf2 {[%emt 0:01:00]} Qxf3+ {[%emt 0:01:30]} 23. Kxf3 {[%emt 0:00:30]} fxe6 {[%emt 0:00:00]} 24. Re4 {[%emt 0:01:30]} Rf8+ {[%emt 0:00:00]} 25. Ke2 {[%emt 0:00:30]} Rg8 {[%emt 0:00:00]} 26. Kf2 {[%emt 0:02:30]} h3 {[%emt 0:06:00]} 27. g4 {[%emt 0:07:30]} Rg5 {[%emt 0:11:30]} 28. Kg3 {[%emt 0:01:30]} Ra5 {[%emt 0:00:30]} 29. a3 {[%emt 0:04:48]} Rc5 {[%emt 0:02:30]} 30. Re2 {[%emt 0:05:03]} h5 {[%emt 0:05:30]} 31. Kxh3 {[%emt 0:00:37]} Kf6 {[%emt 0:00:30]} 32. gxh5 {[%emt 0:01:06]} Rxh5+ {[%emt 0:00:00]} 33. Kg4 {[%emt 0:00:51]} Rg5+ {[%emt 0:00:00]} 34. Kf4 {[%emt 0:00:17]} e5+ {[%emt 0:00:30]} 35. Kf3 {[%emt 0:01:37]} Rf5+ {[%emt 0:01:30]} 36. Ke3 {[%emt 0:00:30]} Rh5 {[%emt 0:00:30]} 37. Rf2+ {[%emt 0:02:23]} Ke6 {[%emt 0:00:30]} 38. Ke4 {[%emt 0:00:50]} Rh3 {[%emt 0:01:30]} 39. Rg2 {[%emt 0:00:39]} Rh4+ {[%emt 0:00:30]} 40. Kf3 {[%emt 0:01:03]} Kf5 {[%emt 0:00:30]} 41. Rf2 {[%emt 0:00:40]} Rh7 {[%emt 0:02:30]} 42. Kg3+ {[%emt 0:01:05]} Ke4 {[%emt 0:00:00]} 43. Re2+ {[%emt 0:00:54]} Kf5 {[%emt 0:01:00]} 44. h4 {[%emt 0:01:51]} e4 {[%emt 0:00:30]} 45. Rf2+ {[%emt 0:01:06]} Ke5 {[%emt 0:00:30]} 46. Rh2 {[%emt 0:01:48]} Rh5 {[%emt 0:09:30]} 47. Kg4 {[%emt 0:01:18]} Rh8 {[%emt 0:00:30]} 48. h5 {[%emt 0:01:00]} Rg8+ {[%emt 0:00:30]} 49. Kh4 {[%emt 0:00:30]} e3 {[%emt 0:00:00]} 50. h6 {[%emt 0:00:09]} Kf4 {[%emt 0:00:00]} 51. Kh5 {[%emt 0:01:27]} Kg3 {[%emt 0:01:30]} 52. Rh1 {[%emt 0:00:30]} Kg2 {[%emt 0:00:30]} 53. Rh4 {[%emt 0:00:28]} e2 {[%emt 0:00:00]} 54. Re4 {[%emt 0:00:30]} Kf2 {[%emt 0:00:00]} 55. h7 {[%emt 0:01:20]} Rh8 {[%emt 0:00:00]} 56. Kg6 {[%emt 0:00:30]} e1=Q {[%emt 0:00:00]} 57. Rxe1 {[%emt 0:00:30]} Kxe1 {[%emt 0:00:30]} 58. Kg7 {[%emt 0:00:30]} Rd8 {[%emt 0:00:30]} 59. h8=Q {[%emt 0:00:30]} Rxh8 {[%emt 0:00:30]} 60. Kxh8 {[%emt 0:00:30]} Kd2 {[%emt 0:00:30]} 61. c4 {[%emt 0:00:00]} Kc2 {[%emt 0:00:00]} 62. Kg7 {[%emt 0:00:13]} Kxb2 {[%emt 0:00:00]} 63. Kf6 {[%emt 0:00:22]} Kxa3 {[%emt 0:00:00]} 0-1

[Event "7th Cesme Open-A 2019"]
[Site "Cesme"]
[Date "2019.06.24"]
[Round "1"]
[White "Celiker, Yakup"]
[Black "Gokerkan, Cem Kaan"]
[Result "0-1"]
[ECO "B25"]
[WhiteElo "1930"]
[BlackElo "2415"]
[Annotator "NA"]
[PlyCount "78"]
[EventDate "2019.06.24"]
[EventType "swiss"]
[EventCountry "TUR"]
[SourceTitle "playchess.com"]
[Source "ChessBase"]
[SourceQuality "1"]
[TimeControl "5400+30"]

1. e4 c5 2. Nc3 Nc6 3. g3 g6 4. Bg2 Bg7 5. f4 {[%emt 0:01:30]} d6 {[%emt 0:09:30]} 6. Nf3 {[%emt 0:00:00]} e5 {[%emt 0:00:30]} 7. d3 {[%emt 0:01:00]} Nge7 {[%emt 0:00:30]} 8. Be3 {[%emt 0:02:30]} Nd4 {[%emt 0:02:30]} 9. fxe5 {[%emt 0:02:30]} dxe5 {[%emt 0:01:30]} 10. Qd2 {[%emt 0:04:30]} Bg4 {[%emt 0:01:30]} 11. Ng1 {[%emt 0:03:30]} O-O {[%emt 0:02:30]} 12. h3 {[%emt 0:00:30]} Be6 {[%emt 0:00:30]} 13. Nf3 {[%emt 0:00:30]} Nxf3+ {[%emt 0:16:30]} 14. Bxf3 {[%emt 0:00:00]} Rc8 {[%emt 0:00:30]} 15. g4 {[%emt 0:01:00]} Nc6 {[%emt 0:06:30]} 16. Ne2 {[%emt 0:15:30]} Nd4 {[%emt 0:01:30]} 17. Bg2 {[%emt 0:02:30]} c4 {[%emt 0:04:30]} 18. Nxd4 {[%emt 0:00:30]} exd4 {[%emt 0:00:30]} 19. Bg5 {[%emt 0:00:30]} Bf6 {[%emt 0:04:30]} 20. Bxf6 {[%emt 0:11:30]} Qxf6 {[%emt 0:01:30]} 21. Rf1 {[%emt 0:00:00]} Qe5 {[%emt 0:02:30]} 22. Kf2 {[%emt 0:01:00]} c3 {[%emt 0:02:30]} 23. bxc3 {[%emt 0:00:30]} Rxc3 {[%emt 0:00:00]} 24. Kg1 {[%emt 0:00:30]} Rfc8 {[%emt 0:00:00]} 25. Rf2 {[%emt 0:00:30]} Qc7 {[%emt 0:07:30]} 26. Rc1 {[%emt 0:04:30]} Bxa2 {[%emt 0:00:30]} 27. Qg5 {[%emt 0:04:30]} Be6 {[%emt 0:10:30]} 28. e5 {[%emt 0:01:30]} Rc5 {[%emt 0:12:22]} 29. Re2 {[%emt 0:00:30]} b5 {[%emt 0:00:09]} 30. Qf4 {[%emt 0:00:30]} Qd8 {[%emt 0:00:35]} 31. Re4 {[%emt 0:01:30]} Rxc2 {[%emt 0:01:28]} 32. Rxc2 {[%emt 0:00:30]} Rxc2 {[%emt 0:00:00]} 33. Rxd4 {[%emt 0:00:30]} Qb6 {[%emt 0:01:21]} 34. Kh2 {[%emt 0:00:30]} a5 {[%emt 0:00:19]} 35. h4 {[%emt 0:00:30]} h6 {[%emt 0:01:47]} 36. Kg3 {[%emt 0:00:30]} a4 {[%emt 0:00:30]} 37. Rd6 {[%emt 0:13:30]} Qg1 {[%emt 0:06:00]} 38. Qe4 {[%emt 0:00:30]} a3 {[%emt 0:00:30]} 39. d4 {[%emt 0:00:30]} Rc3+ {[%emt 0:00:30]} 0-1

[Event "7th Cesme Open-A 2019"]
[Site "Cesme"]
[Date "2019.06.24"]
[Round "1"]
[White "Degirmenci, Yagiz"]
[Black "Annageldyev, Orazly"]
[Result "0-1"]
[ECO "A48"]
[WhiteElo "1923"]
[BlackElo "2353"]
[Annotator "NA"]
[PlyCount "79"]
[EventDate "2019.06.24"]
[EventType "swiss"]
[EventCountry "TUR"]
[SourceTitle "playchess.com"]
[Source "ChessBase"]
[SourceQuality "1"]
[TimeControl "5400+30"]

1. d4 Nf6 2. Nf3 d5 3. c3 g6 4. Bg5 Ne4 5. Bf4 Bg7 6. Nbd2 {[%emt 0:03:00]} O-O {[%emt 0:09:00]} 7. Nxe4 {[%emt 0:01:30]} dxe4 {[%emt 0:00:30]} 8. Nd2 {[%emt 0:00:30]} c5 {[%emt 0:10:30]} 9. e3 {[%emt 0:00:30]} cxd4 {[%emt 0:02:30]} 10. cxd4 {[%emt 0:00:00]} Qa5 {[%emt 0:08:30]} 11. Bc4 {[%emt 0:04:00]} Nc6 {[%emt 0:05:30]} 12. a3 {[%emt 0:01:30]} e5 {[%emt 0:01:30]} 13. b4 {[%emt 0:02:30]} Qd8 {[%emt 0:02:30]} 14. dxe5 {[%emt 0:00:30]} Nxe5 {[%emt 0:00:30]} 15. Bxe5 {[%emt 0:00:30]} Bxe5 {[%emt 0:00:00]} 16. Ra2 {[%emt 0:00:30]} Qg5 {[%emt 0:08:00]} 17. g3 {[%emt 0:03:30]} Bh3 {[%emt 0:04:30]} 18. Qb3 {[%emt 0:08:30]} Rac8 {[%emt 0:07:30]} 19. Rc2 {[%emt 0:00:30]} Qf5 {[%emt 0:01:30]} 20. f4 {[%emt 0:10:30]} exf3 {[%emt 0:07:30]} 21. Kf2 {[%emt 0:00:00]} Qh5 {[%emt 0:11:56]} 22. Nxf3 {[%emt 0:03:00]} Bf5 {[%emt 0:04:33]} 23. Rd2 {[%emt 0:15:30]} Be4 {[%emt 0:03:34]} 24. Be2 {[%emt 0:13:30]} Rc3 {[%emt 0:00:43]} 25. Qa4 {[%emt 0:01:30]} a6 {[%emt 0:04:01]} 26. b5 {[%emt 0:03:30]} Bxf3 {[%emt 0:01:05]} 27. Bxf3 {[%emt 0:00:30]} Qg5 {[%emt 0:00:12]} 28. Re1 {[%emt 0:00:30]} axb5 {[%emt 0:00:26]} 29. Qa7 {[%emt 0:00:30]} Rc7 {[%emt 0:01:06]} 30. Rd5 {[%emt 0:00:30]} Rd8 {[%emt 0:01:08]} 31. Rxd8+ {[%emt 0:01:30]} Qxd8 {[%emt 0:00:30]} 32. Rd1 {[%emt 0:00:00]} Qe7 {[%emt 0:00:32]} 33. Qa5 {[%emt 0:01:00]} Rc2+ {[%emt 0:00:59]} 34. Kg1 {[%emt 0:00:30]} Bc7 {[%emt 0:01:57]} 35. Qa7 {[%emt 0:02:30]} b6 {[%emt 0:00:30]} 36. Re1 {[%emt 0:00:30]} Kg7 {[%emt 0:01:01]} 37. Kh1 {[%emt 0:00:30]} Rxh2+ {[%emt 0:00:18]} 38. Kg1 {[%emt 0:01:30]} Qd6 {[%emt 0:00:48]} 39. Qb7 {[%emt 0:00:30]} Qxg3+ {[%emt 0:00:30]} 40. Bg2 {[%emt 0:00:30]} 0-1

[Event "7th Cesme Open-A 2019"]
[Site "Cesme"]
[Date "2019.06.24"]
[Round "1"]
[White "Taskiran, Recep"]
[Black "Barsov, Alexei"]
[Result "0-1"]
[ECO "A13"]
[WhiteElo "1898"]
[BlackElo "2397"]
[Annotator "NA"]
[PlyCount "72"]
[EventDate "2019.06.24"]
[EventType "swiss"]
[EventCountry "TUR"]
[SourceTitle "playchess.com"]
[Source "ChessBase"]
[SourceQuality "1"]
[TimeControl "5400+30"]

1. Nf3 d5 2. c4 e6 3. g3 dxc4 4. Bg2 a6 5. a4 Nc6 6. Na3 Na5 7. O-O Nf6 8. Qc2 {[%emt 0:02:00]} Qd5 {[%emt 0:15:00]} 9. Rd1 {[%emt 0:07:30]} Bd7 {[%emt 0:06:30]} 10. d3 {[%emt 0:20:30]} Nb3 {[%emt 0:05:30]} 11. Rb1 {[%emt 0:06:30]} Bxa4 {[%emt 0:01:30]} 12. dxc4 {[%emt 0:01:30]} Qa5 {[%emt 0:00:00]} 13. Rd3 {[%emt 0:26:30]} Nd4 {[%emt 0:14:00]} 14. Qd2 {[%emt 0:01:30]} Bb4 {[%emt 0:02:30]} 15. Qe3 {[%emt 0:03:30]} Nf5 {[%emt 0:00:00]} 16. Qe5 {[%emt 0:03:30]} Qb6 {[%emt 0:01:00]} 17. Bh3 {[%emt 0:10:14]} Bd6 {[%emt 0:08:30]} 18. Qc3 {[%emt 0:00:15]} Ne4 {[%emt 0:00:30]} 19. Qe1 {[%emt 0:00:02]} Bb4 {[%emt 0:01:30]} 20. Qf1 {[%emt 0:00:03]} O-O {[%emt 0:00:30]} 21. Bxf5 {[%emt 0:00:30]} exf5 {[%emt 0:00:00]} 22. b3 {[%emt 0:04:21]} Bc6 {[%emt 0:12:00]} 23. Ne5 {[%emt 0:00:00]} Bc5 {[%emt 0:02:30]} 24. Rf3 {[%emt 0:08:14]} Bxa3 {[%emt 0:02:30]} 25. Nxc6 {[%emt 0:01:01]} Qxc6 {[%emt 0:01:30]} 26. Bxa3 {[%emt 0:00:30]} Nd2 {[%emt 0:00:00]} 27. Qc1 {[%emt 0:00:42]} Nxf3+ {[%emt 0:03:00]} 28. exf3 {[%emt 0:00:05]} Rfd8 {[%emt 0:00:00]} 29. Qf4 {[%emt 0:01:17]} Rd3 {[%emt 0:00:00]} 30. Kg2 {[%emt 0:00:00]} Qd7 {[%emt 0:00:30]} 31. Bc5 {[%emt 0:00:44]} Re8 {[%emt 0:01:30]} 32. Be3 {[%emt 0:00:36]} f6 {[%emt 0:03:30]} 33. h4 {[%emt 0:00:30]} a5 {[%emt 0:00:30]} 34. h5 {[%emt 0:00:30]} Re5 {[%emt 0:00:30]} 35. Rb2 {[%emt 0:00:48]} Qe8 {[%emt 0:02:30]} 36. Rd2 {[%emt 0:03:33]} Rexe3 {[%emt 0:00:30]} 0-1

[Event "7th Cesme Open-A 2019"]
[Site "Cesme"]
[Date "2019.06.25"]
[Round "2"]
[White "Baklan, Vladimir"]
[Black "Guseynov, Alihan"]
[Result "1-0"]
[ECO "B09"]
[WhiteElo "2620"]
[BlackElo "2274"]
[Annotator "RC"]
[PlyCount "65"]
[EventDate "2019.06.24"]
[EventType "swiss"]
[EventCountry "TUR"]
[SourceTitle "playchess.com"]
[Source "ChessBase"]
[SourceQuality "1"]
[TimeControl "5400+30"]

1. e4 {[%emt 0:00:30]} g6 {[%emt 0:00:30]} 2. d4 {[%emt 0:00:00]} Bg7 {[%emt 0:00:30]} 3. Nc3 {[%emt 0:00:00]} d6 {[%emt 0:00:00]} 4. f4 {[%emt 0:00:30]} Nf6 {[%emt 0:00:00]} 5. Nf3 {[%emt 0:00:30]} O-O {[%emt 0:00:30]} 6. a3 {[%emt 0:00:30]} Nc6 {[%emt 0:10:30]} 7. Be2 {[%emt 0:14:30]} d5 {[%emt 0:11:30]} 8. e5 {[%emt 0:09:30]} Ne4 {[%emt 0:00:30]} 9. O-O {[%emt 0:00:30]} Bg4 {[%emt 0:11:30]} 10. Qe1 {[%emt 0:08:30]} Bxf3 {[%emt 0:11:30]} 11. Bxf3 {[%emt 0:01:30]} Nxd4 {[%emt 0:03:30]} 12. Bxe4 {[%emt 0:00:30]} dxe4 {[%emt 0:00:00]} 13. Qxe4 {[%emt 0:00:30]} Nc6 {[%emt 0:00:00]} 14. Be3 {[%emt 0:02:30]} e6 {[%emt 0:07:30]} 15. Rad1 {[%emt 0:13:30]} Qe7 {[%emt 0:06:30]} 16. Na4 {[%emt 0:00:30]} Rfd8 {[%emt 0:07:30]} 17. Nc5 {[%emt 0:00:30]} Qe8 {[%emt 0:00:30]} 18. Nxb7 {[%emt 0:22:30]} Rxd1 {[%emt 0:10:51]} 19. Rxd1 {[%emt 0:00:30]} Rb8 {[%emt 0:00:00]} 20. Nc5 {[%emt 0:00:30]} Rxb2 {[%emt 0:00:00]} 21. Na6 {[%emt 0:00:30]} Ne7 {[%emt 0:02:14]} 22. Nb4 {[%emt 0:00:30]} Nd5 {[%emt 0:07:24]} 23. Bd4 {[%emt 0:02:30]} Rxb4 {[%emt 0:01:31]} 24. axb4 {[%emt 0:00:30]} Nxb4 {[%emt 0:00:00]} 25. Bxa7 {[%emt 0:00:30]} Bf8 {[%emt 0:00:00]} 26. Bf2 {[%emt 0:01:17]} Qa4 {[%emt 0:01:00]} 27. h3 {[%emt 0:00:52]} Qxc2 {[%emt 0:00:16]} 28. Qxc2 {[%emt 0:06:12]} Nxc2 {[%emt 0:00:30]} 29. Rd8 {[%emt 0:00:00]} Kg7 {[%emt 0:00:31]} 30. Bh4 {[%emt 0:00:00]} Bc5+ {[%emt 0:00:35]} 31. Kh2 {[%emt 0:00:16]} Be3 {[%emt 0:01:25]} 32. Bf6+ {[%emt 0:00:47]} Kh6 {[%emt 0:00:30]} 33. g3 {[%emt 0:00:00]} 1-0

[Event "7th Cesme Open-A 2019"]
[Site "Cesme"]
[Date "2019.06.25"]
[Round "2"]
[White "Tuncer, Tuna"]
[Black "Yilmaz, Goktan"]
[Result "1/2-1/2"]
[ECO "B94"]
[WhiteElo "2365"]
[BlackElo "2155"]
[Annotator "ChessBase"]
[PlyCount "77"]
[EventDate "2019.06.24"]
[EventType "swiss"]
[EventCountry "TUR"]
[SourceTitle "playchess.com"]
[Source "ChessBase"]
[SourceQuality "1"]
[TimeControl "5400+30"]

1. e4 {[%emt 0:00:30]} c5 {[%emt 0:00:30]} 2. Nf3 {[%emt 0:00:00]} d6 {[%emt 0:00:30]} 3. d4 {[%emt 0:00:00]} cxd4 {[%emt 0:00:30]} 4. Nxd4 {[%emt 0:00:30]} Nf6 {[%emt 0:00:30]} 5. Nc3 {[%emt 0:00:30]} a6 {[%emt 0:00:00]} 6. Bg5 {[%emt 0:00:00]} Nbd7 {[%emt 0:00:00]} 7. Qe2 {[%emt 0:00:00]} Qa5 {[%emt 0:00:00]} 8. Bd2 {[%emt 0:00:30]} Qc7 {[%emt 0:00:00]} 9. g4 {[%emt 0:00:30]} h6 {[%emt 0:00:30]} 10. h4 {[%emt 0:19:30]} b5 {[%emt 0:12:30]} 11. Bg2 {[%emt 0:05:30]} e5 {[%emt 0:09:30]} 12. Nd5 {[%emt 0:05:30]} Nxd5 {[%emt 0:07:30]} 13. exd5 {[%emt 0:01:30]} Qc4 {[%emt 0:07:30]} 14. Qxc4 {[%emt 0:04:30]} bxc4 {[%emt 0:00:30]} 15. Ne2 {[%emt 0:12:30]} Nc5 {[%emt 0:03:30]} 16. g5 {[%emt 0:01:30]} hxg5 {[%emt 0:01:30]} 17. hxg5 {[%emt 0:01:30]} Rxh1+ {[%emt 0:00:30]} 18. Bxh1 {[%emt 0:00:00]} Bf5 {[%emt 0:00:30]} 19. O-O-O {[%emt 0:01:00]} Ne4 {[%emt 0:08:30]} 20. Be3 {[%emt 0:02:30]} Be7 {[%emt 0:00:30]} 21. Rg1 {[%emt 0:00:30]} O-O-O {[%emt 0:05:30]} 22. f3 {[%emt 0:02:30]} Nc5 {[%emt 0:00:30]} 23. Bg2 {[%emt 0:01:30]} Rh8 {[%emt 0:02:30]} 24. Rh1 {[%emt 0:00:30]} Rxh1+ {[%emt 0:00:30]} 25. Bxh1 {[%emt 0:00:00]} Nd7 {[%emt 0:04:30]} 26. Bg2 {[%emt 0:03:00]} Kc7 {[%emt 0:01:30]} 27. b3 {[%emt 0:17:30]} cxb3 {[%emt 0:02:30]} 28. axb3 {[%emt 0:00:30]} Nf8 {[%emt 0:03:30]} 29. Ng3 {[%emt 0:05:45]} Bg6 {[%emt 0:01:30]} 30. Bf1 {[%emt 0:02:12]} Kb7 {[%emt 0:00:30]} 31. Bd3 {[%emt 0:06:53]} Bxd3 {[%emt 0:01:30]} 32. cxd3 {[%emt 0:00:03]} Nd7 {[%emt 0:05:30]} 33. Nf5 {[%emt 0:02:01]} Bf8 {[%emt 0:00:30]} 34. d4 {[%emt 0:00:30]} Nb6 {[%emt 0:04:12]} 35. dxe5 {[%emt 0:01:21]} Nxd5 {[%emt 0:00:15]} 36. Bd4 {[%emt 0:01:11]} dxe5 {[%emt 0:00:30]} 37. Bxe5 {[%emt 0:00:18]} f6 {[%emt 0:00:41]} 38. Bxf6 {[%emt 0:00:36]} Nxf6 {[%emt 0:00:30]} 39. gxf6 {[%emt 0:00:30]} 1/2-1/2

[Event "7th Cesme Open-A 2019"]
[Site "Cesme"]
[Date "2019.06.25"]
[Round "2"]
[White "Annageldyev, Orazly"]
[Black "Erdogan, Anil Berk"]
[Result "1/2-1/2"]
[ECO "A48"]
[WhiteElo "2353"]
[BlackElo "2087"]
[Annotator "ChessBase"]
[PlyCount "94"]
[EventDate "2019.06.24"]
[EventType "swiss"]
[EventCountry "TUR"]
[SourceTitle "playchess.com"]
[Source "ChessBase"]
[SourceQuality "1"]
[TimeControl "5400+30"]

1. d4 {[%emt 0:00:30]} Nf6 {[%emt 0:02:30]} 2. Nf3 {[%emt 0:00:30]} c5 {[%emt 0:01:30]} 3. e3 {[%emt 0:00:00]} g6 {[%emt 0:01:30]} 4. Be2 {[%emt 0:00:00]} Bg7 {[%emt 0:01:30]} 5. O-O {[%emt 0:00:30]} Qc7 {[%emt 0:09:30]} 6. c4 {[%emt 0:08:30]} cxd4 {[%emt 0:03:30]} 7. Nxd4 {[%emt 0:00:30]} a6 {[%emt 0:04:30]} 8. Nc3 {[%emt 0:00:30]} d6 {[%emt 0:04:30]} 9. e4 {[%emt 0:04:30]} O-O {[%emt 0:03:30]} 10. Be3 {[%emt 0:02:30]} Nc6 {[%emt 0:00:30]} 11. Rc1 {[%emt 0:01:30]} Nxd4 {[%emt 0:04:30]} 12. Bxd4 {[%emt 0:00:30]} Be6 {[%emt 0:01:30]} 13. f4 {[%emt 0:40:30]} Qa5 {[%emt 0:15:30]} 14. f5 {[%emt 0:05:30]} Bd7 {[%emt 0:03:30]} 15. Kh1 {[%emt 0:17:13]} Bc6 {[%emt 0:04:30]} 16. Qd3 {[%emt 0:07:49]} Nd7 {[%emt 0:03:30]} 17. Bxg7 {[%emt 0:00:37]} Kxg7 {[%emt 0:00:30]} 18. a3 {[%emt 0:01:15]} Qe5 {[%emt 0:01:30]} 19. b4 {[%emt 0:00:40]} Nf6 {[%emt 0:09:30]} 20. Bf3 {[%emt 0:00:08]} b5 {[%emt 0:00:30]} 21. Rcd1 {[%emt 0:04:02]} bxc4 {[%emt 0:02:30]} 22. Qxc4 {[%emt 0:00:07]} Bb5 {[%emt 0:00:31]} 23. Nxb5 {[%emt 0:00:36]} axb5 {[%emt 0:00:29]} 24. Qd3 {[%emt 0:00:00]} Rfc8 {[%emt 0:00:33]} 25. Rc1 {[%emt 0:01:28]} Rxc1 {[%emt 0:04:42]} 26. Rxc1 {[%emt 0:00:06]} Qb2 {[%emt 0:00:00]} 27. Rg1 {[%emt 0:01:29]} Rxa3 {[%emt 0:03:59]} 28. Qxb5 {[%emt 0:00:08]} Qd4 {[%emt 0:00:41]} 29. Qe2 {[%emt 0:02:18]} Qxb4 {[%emt 0:05:25]} 30. fxg6 {[%emt 0:00:09]} hxg6 {[%emt 0:00:36]} 31. e5 {[%emt 0:00:06]} dxe5 {[%emt 0:00:39]} 32. Qxe5 {[%emt 0:00:06]} Rb3 {[%emt 0:01:17]} 33. Qa1 {[%emt 0:00:28]} Re3 {[%emt 0:02:01]} 34. h3 {[%emt 0:00:11]} Qc3 {[%emt 0:01:45]} 35. Qd1 {[%emt 0:00:10]} Qd3 {[%emt 0:01:13]} 36. Qa1 {[%emt 0:00:21]} Qc3 {[%emt 0:00:54]} 37. Qd1 {[%emt 0:00:30]} Qe5 {[%emt 0:00:00]} 38. Rf1 {[%emt 0:00:00]} Ng8 {[%emt 0:01:47]} 39. Qa1 {[%emt 0:02:57]} Nh6 {[%emt 0:02:09]} 40. Qxe5+ {[%emt 0:00:00]} Rxe5 {[%emt 0:00:43]} 41. g4 {[%emt 0:00:00]} f5 {[%emt 0:00:02]} 42. Kg2 {[%emt 0:00:41]} Ra5 {[%emt 0:00:30]} 43. Rb1 {[%emt 0:00:06]} Ra7 {[%emt 0:00:39]} 44. Rb5 {[%emt 0:00:30]} Kf6 {[%emt 0:00:30]} 45. Rb6+ {[%emt 0:00:30]} e6 {[%emt 0:00:43]} 46. Bd5 {[%emt 0:00:16]} Re7 {[%emt 0:00:00]} 47. Bxe6 {[%emt 0:00:51]} fxg4 {[%emt 0:00:28]} 1/2-1/2